[Event "Turkish Second League 2019"]
[Site "Konya"]
[Date "2019.07.28"]
[Round "9"]
[White "Ibrahimova, Sabina"]
[Black "Abdulla, Khayala"]
[Result "1/2-1/2"]
[ECO "B29"]
[WhiteElo "2190"]
[BlackElo "2283"]
[Annotator "NA"]
[PlyCount "149"]
[EventDate "2019.07.22"]
[EventType "team-tourn"]
[EventCountry "TUR"]
[SourceTitle "playchess.com"]
[Source "ChessBase"]
[SourceQuality "1"]
[TimeControl "5400+30"]

1. e4 {[%emt 0:00:30]} c5 {[%emt 0:02:30]} 2. Nf3 {[%emt 0:00:00]} Nf6 {[%emt 0:00:30]} 3. e5 {[%emt 0:05:00]} Nd5 {[%emt 0:00:30]} 4. Nc3 {[%emt 0:00:30]} e6 {[%emt 0:00:30]} 5. g3 {[%emt 0:06:30]} d6 {[%emt 0:02:30]} 6. exd6 {[%emt 0:10:30]} Nxc3 {[%emt 0:02:30]} 7. dxc3 {[%emt 0:00:30]} Bxd6 {[%emt 0:00:30]} 8. Bg2 {[%emt 0:01:30]} Nc6 {[%emt 0:00:30]} 9. O-O {[%emt 0:00:30]} O-O {[%emt 0:00:30]} 10. Ng5 {[%emt 0:11:30]} Be7 {[%emt 0:06:30]} 11. Qxd8 {[%emt 0:02:30]} Rxd8 {[%emt 0:02:30]} 12. Be3 {[%emt 0:00:30]} Bd7 {[%emt 0:02:30]} 13. Ne4 {[%emt 0:04:30]} b6 {[%emt 0:05:30]} 14. f4 {[%emt 0:00:30]} Rac8 {[%emt 0:03:30]} 15. g4 {[%emt 0:01:30]} Na5 {[%emt 0:05:30]} 16. b3 {[%emt 0:01:30]} f5 {[%emt 0:03:30]} 17. Ng5 {[%emt 0:11:30]} h6 {[%emt 0:06:30]} 18. Nf3 {[%emt 0:00:30]} fxg4 {[%emt 0:00:30]} 19. Ne5 {[%emt 0:00:30]} Bf6 {[%emt 0:03:30]} 20. Nxd7 {[%emt 0:17:30]} Rxd7 {[%emt 0:01:30]} 21. Rad1 {[%emt 0:00:00]} Rcd8 {[%emt 0:10:30]} 22. Rxd7 {[%emt 0:01:00]} Rxd7 {[%emt 0:00:30]} 23. c4 {[%emt 0:01:30]} Rd6 {[%emt 0:02:30]} 24. f5 {[%emt 0:01:42]} e5 {[%emt 0:02:30]} 25. Be4 {[%emt 0:05:27]} Nc6 {[%emt 0:05:30]} 26. Kg2 {[%emt 0:02:00]} Nd8 {[%emt 0:05:30]} 27. Kg3 {[%emt 0:03:49]} h5 {[%emt 0:00:30]} 28. a3 {[%emt 0:00:41]} a5 {[%emt 0:06:20]} 29. c3 {[%emt 0:01:02]} Nf7 {[%emt 0:02:43]} 30. Bd5 {[%emt 0:04:32]} Kf8 {[%emt 0:01:36]} 31. b4 {[%emt 0:00:03]} axb4 {[%emt 0:03:46]} 32. axb4 {[%emt 0:00:05]} cxb4 {[%emt 0:00:21]} 33. cxb4 {[%emt 0:00:19]} Bg5 {[%emt 0:00:41]} 34. Bf2 {[%emt 0:01:23]} Nh6 {[%emt 0:01:46]} 35. Kg2 {[%emt 0:01:00]} Bd2 {[%emt 0:04:11]} 36. Bh4 {[%emt 0:01:40]} Bf4 {[%emt 0:01:43]} 37. Ra1 {[%emt 0:00:57]} Ke8 {[%emt 0:04:18]} 38. Ra8+ {[%emt 0:01:28]} Kd7 {[%emt 0:00:01]} 39. Ra7+ {[%emt 0:00:24]} Ke8 {[%emt 0:01:02]} 40. Be7 {[%emt 0:01:40]} Rxd5 {[%emt 0:01:28]} 41. cxd5 {[%emt 0:00:14]} Nxf5 {[%emt 0:00:00]} 42. d6 {[%emt 0:00:24]} e4 {[%emt 0:00:23]} 43. Ra8+ {[%emt 0:01:54]} Kd7 {[%emt 0:00:01]} 44. Ra7+ {[%emt 0:00:00]} Ke6 {[%emt 0:00:48]} 45. Bd8 {[%emt 0:00:40]} Bxd6 {[%emt 0:00:22]} 46. Bxb6 {[%emt 0:00:46]} Bxb4 {[%emt 0:00:06]} 47. Ra4 {[%emt 0:00:00]} Bd6 {[%emt 0:01:02]} 48. Rxe4+ {[%emt 0:00:20]} Kd5 {[%emt 0:00:01]} 49. Re2 {[%emt 0:00:08]} Nh4+ {[%emt 0:00:25]} 50. Kf1 {[%emt 0:01:05]} Nf3 {[%emt 0:00:19]} 51. Bg1 {[%emt 0:00:28]} h4 {[%emt 0:00:57]} 52. Ra2 {[%emt 0:00:29]} Ke4 {[%emt 0:00:36]} 53. Ra4+ {[%emt 0:00:48]} Kf5 {[%emt 0:00:02]} 54. Ra5+ {[%emt 0:00:00]} Be5 {[%emt 0:00:21]} 55. Rb5 {[%emt 0:00:50]} h3 {[%emt 0:01:19]} 56. Ra5 {[%emt 0:00:32]} Kf6 {[%emt 0:01:11]} 57. Ra6+ {[%emt 0:00:23]} Kf5 {[%emt 0:00:38]} 58. Ra5 {[%emt 0:00:06]} g5 {[%emt 0:00:07]} 59. Ra2 {[%emt 0:00:46]} g3 {[%emt 0:01:03]} 60. hxg3 {[%emt 0:00:16]} Bxg3 {[%emt 0:00:00]} 61. Bb6 {[%emt 0:00:59]} Kg4 {[%emt 0:00:20]} 62. Rb2 {[%emt 0:00:25]} Bf4 {[%emt 0:00:57]} 63. Bf2 {[%emt 0:00:28]} Nd2+ {[%emt 0:00:59]} 64. Kg1 {[%emt 0:00:13]} Kf3 {[%emt 0:00:00]} 65. Be1 {[%emt 0:00:25]} h2+ {[%emt 0:00:49]} 66. Kh1 {[%emt 0:00:03]} Ne4 {[%emt 0:00:03]} 67. Rxh2 {[%emt 0:00:47]} Bxh2 {[%emt 0:00:30]} 68. Kxh2 {[%emt 0:00:00]} g4 {[%emt 0:00:10]} 69. Bh4 {[%emt 0:00:25]} Nc3 {[%emt 0:00:47]} 70. Be1 {[%emt 0:00:48]} Nd1 {[%emt 0:00:30]} 71. Kg1 {[%emt 0:00:00]} Ne3 {[%emt 0:00:06]} 72. Bh4 {[%emt 0:00:34]} Nf5 {[%emt 0:00:54]} 73. Be1 {[%emt 0:00:48]} Ng3 {[%emt 0:00:04]} 74. Bf2 {[%emt 0:00:09]} Ne2+ {[%emt 0:01:15]} 75. Kf1 {[%emt 0:00:05]} 1/2-1/2

[Event "Turkish Second League 2019"]
[Site "Konya"]
[Date "2019.07.28"]
[Round "9"]
[White "Alumert, Orkun Efe"]
[Black "Karaoglan, Doruk"]
[Result "0-1"]
[ECO "B42"]
[WhiteElo "2151"]
[BlackElo "2278"]
[Annotator "NA"]
[PlyCount "96"]
[EventDate "2019.07.22"]
[EventType "team-tourn"]
[EventCountry "TUR"]
[SourceTitle "playchess.com"]
[Source "ChessBase"]
[SourceQuality "1"]
[TimeControl "5400+30"]

1. e4 {[%emt 0:00:30]} c5 {[%emt 0:03:30]} 2. Nf3 {[%emt 0:00:30]} e6 {[%emt 0:00:30]} 3. d4 {[%emt 0:00:30]} cxd4 {[%emt 0:00:30]} 4. Nxd4 {[%emt 0:00:00]} a6 {[%emt 0:00:30]} 5. Bd3 {[%emt 0:00:00]} Ne7 {[%emt 0:00:30]} 6. O-O {[%emt 0:04:30]} Nbc6 {[%emt 0:00:30]} 7. Nxc6 {[%emt 0:00:30]} Nxc6 {[%emt 0:00:00]} 8. c4 {[%emt 0:02:30]} Bc5 {[%emt 0:04:00]} 9. Nc3 {[%emt 0:02:30]} d6 {[%emt 0:08:30]} 10. Qg4 {[%emt 0:11:30]} Qf6 {[%emt 0:14:30]} 11. Bg5 {[%emt 0:09:30]} Ne5 {[%emt 0:16:30]} 12. Qg3 {[%emt 0:13:30]} Qg6 {[%emt 0:00:30]} 13. Rfd1 {[%emt 0:00:30]} h6 {[%emt 0:02:30]} 14. Bf4 {[%emt 0:23:30]} Qxg3 {[%emt 0:20:30]} 15. Bxg3 {[%emt 0:01:30]} Bd7 {[%emt 0:00:30]} 16. Kf1 {[%emt 0:01:30]} g5 {[%emt 0:01:30]} 17. Be2 {[%emt 0:05:30]} Ke7 {[%emt 0:01:30]} 18. a3 {[%emt 0:01:16]} a5 {[%emt 0:04:56]} 19. f4 {[%emt 0:03:29]} gxf4 {[%emt 0:05:20]} 20. Bxf4 {[%emt 0:00:30]} Bc6 {[%emt 0:00:03]} 21. a4 {[%emt 0:04:45]} Rag8 {[%emt 0:05:41]} 22. Bxe5 {[%emt 0:04:38]} dxe5 {[%emt 0:01:02]} 23. Bf3 {[%emt 0:01:02]} Rf8 {[%emt 0:03:30]} 24. Ke2 {[%emt 0:04:32]} Rhg8 {[%emt 0:01:49]} 25. g3 {[%emt 0:01:22]} f5 {[%emt 0:01:44]} 26. Rf1 {[%emt 0:00:26]} f4 {[%emt 0:00:31]} 27. g4 {[%emt 0:01:11]} Rd8 {[%emt 0:01:44]} 28. Rac1 {[%emt 0:01:08]} Bd4 {[%emt 0:00:18]} 29. Rfd1 {[%emt 0:00:37]} Bxc3 {[%emt 0:00:35]} 30. Rxd8 {[%emt 0:00:09]} Rxd8 {[%emt 0:00:00]} 31. bxc3 {[%emt 0:00:45]} Bxa4 {[%emt 0:00:00]} 32. Ra1 {[%emt 0:00:00]} Bb3 {[%emt 0:00:07]} 33. Rxa5 {[%emt 0:00:03]} Bxc4+ {[%emt 0:00:41]} 34. Kf2 {[%emt 0:00:16]} Kf6 {[%emt 0:00:36]} 35. h4 {[%emt 0:00:04]} b5 {[%emt 0:00:25]} 36. Ra7 {[%emt 0:00:21]} Rd2+ {[%emt 0:00:31]} 37. Kg1 {[%emt 0:00:22]} Rd3 {[%emt 0:00:35]} 38. Kg2 {[%emt 0:00:10]} Rxc3 {[%emt 0:00:31]} 39. h5 {[%emt 0:00:34]} b4 {[%emt 0:00:51]} 40. g5+ {[%emt 0:00:28]} Kxg5 {[%emt 0:00:59]} 41. Rg7+ {[%emt 0:00:02]} Kf6 {[%emt 0:00:28]} 42. Rg6+ {[%emt 0:00:03]} Kf7 {[%emt 0:00:13]} 43. Rxh6 {[%emt 0:00:02]} b3 {[%emt 0:00:18]} 44. Rh7+ {[%emt 0:00:30]} Kg8 {[%emt 0:00:00]} 45. Rb7 {[%emt 0:00:00]} Rc2+ {[%emt 0:00:02]} 46. Kh3 {[%emt 0:00:41]} b2 {[%emt 0:00:16]} 47. h6 {[%emt 0:00:11]} Ba2 {[%emt 0:00:32]} 48. h7+ {[%emt 0:00:59]} Kh8 {[%emt 0:00:04]} 0-1

[Event "Turkish Second League 2019"]
[Site "Konya"]
[Date "2019.07.28"]
[Round "9"]
[White "Metin, Mehmet"]
[Black "Ozturk, Emir"]
[Result "0-1"]
[ECO "B08"]
[WhiteElo "2150"]
[BlackElo "2216"]
[Annotator "NA"]
[PlyCount "70"]
[EventDate "2019.07.22"]
[EventType "team-tourn"]
[EventCountry "TUR"]
[SourceTitle "playchess.com"]
[Source "ChessBase"]
[SourceQuality "1"]
[TimeControl "5400+30"]

1. e4 {[%emt 0:00:30]} g6 {[%emt 0:00:30]} 2. d4 {[%emt 0:01:30]} Bg7 {[%emt 0:00:00]} 3. Nc3 {[%emt 0:00:00]} c6 {[%emt 0:00:00]} 4. Nf3 {[%emt 0:00:00]} d6 {[%emt 0:00:30]} 5. a4 {[%emt 0:00:30]} Nf6 {[%emt 0:01:30]} 6. h3 {[%emt 0:00:30]} O-O {[%emt 0:00:30]} 7. Be3 {[%emt 0:01:30]} Nbd7 {[%emt 0:04:30]} 8. Be2 {[%emt 0:00:30]} Qc7 {[%emt 0:03:30]} 9. O-O {[%emt 0:01:30]} b6 {[%emt 0:01:30]} 10. Qd2 {[%emt 0:07:30]} Bb7 {[%emt 0:01:30]} 11. Bh6 {[%emt 0:01:30]} a6 {[%emt 0:01:30]} 12. Bxg7 {[%emt 0:01:30]} Kxg7 {[%emt 0:00:00]} 13. Qe3 {[%emt 0:01:30]} e5 {[%emt 0:01:00]} 14. Rfd1 {[%emt 0:03:30]} b5 {[%emt 0:08:30]} 15. b4 {[%emt 0:11:30]} exd4 {[%emt 0:09:30]} 16. Qxd4 {[%emt 0:41:30]} c5 {[%emt 0:01:30]} 17. Qxd6 {[%emt 0:00:30]} Qxd6 {[%emt 0:00:30]} 18. Rxd6 {[%emt 0:00:30]} cxb4 {[%emt 0:00:30]} 19. Nd5 {[%emt 0:00:00]} bxa4 {[%emt 0:12:30]} 20. Nxb4 {[%emt 0:04:05]} Nc5 {[%emt 0:03:30]} 21. e5 {[%emt 0:03:29]} Nfe4 {[%emt 0:00:30]} 22. Rb6 {[%emt 0:00:24]} Nc3 {[%emt 0:02:30]} 23. Kf1 {[%emt 0:02:21]} Rab8 {[%emt 0:08:30]} 24. Nc6 {[%emt 0:04:36]} Nd7 {[%emt 0:06:30]} 25. Rxb7 {[%emt 0:08:03]} Rxb7 {[%emt 0:00:00]} 26. Nd2 {[%emt 0:00:00]} Rb6 {[%emt 0:01:00]} 27. Bf3 {[%emt 0:00:49]} Rc8 {[%emt 0:00:30]} 28. e6 {[%emt 0:02:22]} fxe6 {[%emt 0:01:30]} 29. Nd4 {[%emt 0:00:02]} e5 {[%emt 0:02:30]} 30. Ne2 {[%emt 0:00:10]} Nxe2 {[%emt 0:02:30]} 31. Kxe2 {[%emt 0:00:02]} Rxc2 {[%emt 0:00:30]} 32. Be4 {[%emt 0:00:27]} Rcb2 {[%emt 0:00:30]} 33. Kd1 {[%emt 0:02:15]} Rd6 {[%emt 0:04:30]} 34. Bc2 {[%emt 0:00:01]} Nc5 {[%emt 0:00:00]} 35. Kc1 {[%emt 0:00:44]} Rxc2+ {[%emt 0:00:00]} 0-1

[Event "Turkish Second League 2019"]
[Site "Konya"]
[Date "2019.07.28"]
[Round "9"]
[White "Duman, Aydin"]
[Black "Temizkan, Denizcan"]
[Result "1/2-1/2"]
[ECO "C55"]
[WhiteElo "2059"]
[BlackElo "2202"]
[Annotator "NA"]
[PlyCount "161"]
[EventDate "2019.07.22"]
[EventType "team-tourn"]
[EventCountry "TUR"]
[SourceTitle "playchess.com"]
[Source "ChessBase"]
[SourceQuality "1"]
[TimeControl "5400+30"]

1. e4 {[%emt 0:00:30]} e5 {[%emt 0:00:30]} 2. Nf3 {[%emt 0:00:30]} Nc6 {[%emt 0:00:00]} 3. Bc4 {[%emt 0:00:00]} Be7 {[%emt 0:00:00]} 4. O-O {[%emt 0:01:00]} Nf6 {[%emt 0:00:30]} 5. Re1 {[%emt 0:01:30]} O-O {[%emt 0:00:00]} 6. d3 {[%emt 0:01:30]} d6 {[%emt 0:00:00]} 7. a4 {[%emt 0:00:30]} a6 {[%emt 0:16:30]} 8. Nbd2 {[%emt 0:01:30]} Rb8 {[%emt 0:01:30]} 9. a5 {[%emt 0:00:30]} Be6 {[%emt 0:02:30]} 10. c3 {[%emt 0:00:30]} h6 {[%emt 0:04:30]} 11. Nf1 {[%emt 0:07:30]} Qd7 {[%emt 0:11:30]} 12. Ng3 {[%emt 0:01:30]} Rfe8 {[%emt 0:00:30]} 13. Bxe6 {[%emt 0:05:30]} Qxe6 {[%emt 0:01:30]} 14. d4 {[%emt 0:11:30]} exd4 {[%emt 0:02:30]} 15. cxd4 {[%emt 0:03:30]} d5 {[%emt 0:00:00]} 16. e5 {[%emt 0:02:30]} Nh7 {[%emt 0:04:00]} 17. Qd3 {[%emt 0:07:30]} Nb4 {[%emt 0:04:30]} 18. Qb3 {[%emt 0:07:30]} b6 {[%emt 0:06:30]} 19. axb6 {[%emt 0:05:30]} Rxb6 {[%emt 0:01:30]} 20. Bd2 {[%emt 0:00:30]} Qg6 {[%emt 0:08:30]} 21. Bxb4 {[%emt 0:03:30]} Bxb4 {[%emt 0:01:30]} 22. Rec1 {[%emt 0:02:30]} c6 {[%emt 0:00:30]} 23. Qc2 {[%emt 0:00:30]} Nf8 {[%emt 0:08:30]} 24. Ne2 {[%emt 0:05:30]} Ne6 {[%emt 0:03:30]} 25. Qxg6 {[%emt 0:02:30]} fxg6 {[%emt 0:00:00]} 26. Rc2 {[%emt 0:00:00]} g5 {[%emt 0:02:29]} 27. Rac1 {[%emt 0:03:00]} g4 {[%emt 0:04:21]} 28. Nh4 {[%emt 0:00:30]} c5 {[%emt 0:01:15]} 29. dxc5 {[%emt 0:01:30]} Nxc5 {[%emt 0:02:04]} 30. f4 {[%emt 0:04:56]} gxf3 {[%emt 0:06:11]} 31. Nxf3 {[%emt 0:02:47]} Nd3 {[%emt 0:00:25]} 32. Rd1 {[%emt 0:01:02]} Nxe5 {[%emt 0:00:06]} 33. Rxd5 {[%emt 0:00:06]} Nxf3+ {[%emt 0:02:47]} 34. gxf3 {[%emt 0:00:05]} Rf6 {[%emt 0:01:25]} 35. Rd3 {[%emt 0:01:06]} Ref8 {[%emt 0:00:47]} 36. Kg2 {[%emt 0:00:17]} Ba5 {[%emt 0:00:42]} 37. Ng3 {[%emt 0:01:07]} Bb6 {[%emt 0:00:10]} 38. Rdc3 {[%emt 0:02:52]} Bd4 {[%emt 0:00:55]} 39. Rd3 {[%emt 0:00:16]} Bb6 {[%emt 0:00:48]} 40. Rdc3 {[%emt 0:00:06]} Bd4 {[%emt 0:01:20]} 41. Rd3 {[%emt 0:00:17]} Be5 {[%emt 0:00:00]} 42. Re3 {[%emt 0:01:42]} Bf4 {[%emt 0:00:03]} 43. Rec3 {[%emt 0:02:42]} Rb6 {[%emt 0:00:46]} 44. Rc6 {[%emt 0:02:15]} Rfb8 {[%emt 0:00:59]} 45. Rxb6 {[%emt 0:00:05]} Rxb6 {[%emt 0:00:00]} 46. Ne4 {[%emt 0:02:08]} Be5 {[%emt 0:00:06]} 47. Nc5 {[%emt 0:01:25]} Rc6 {[%emt 0:02:08]} 48. b4 {[%emt 0:05:57]} Bd6 {[%emt 0:00:28]} 49. Ra2 {[%emt 0:00:28]} Bxc5 {[%emt 0:00:37]} 50. bxc5 {[%emt 0:00:30]} Kf7 {[%emt 0:00:00]} 51. h4 {[%emt 0:01:14]} Ke6 {[%emt 0:00:32]} 52. Kg3 {[%emt 0:00:57]} Kd5 {[%emt 0:00:59]} 53. Ra5 {[%emt 0:00:31]} Kc4 {[%emt 0:01:03]} 54. h5 {[%emt 0:01:16]} Kb4 {[%emt 0:00:08]} 55. Ra1 {[%emt 0:00:00]} a5 {[%emt 0:01:18]} 56. Rb1+ {[%emt 0:00:06]} Kc3 {[%emt 0:00:59]} 57. Rb7 {[%emt 0:00:59]} Rxc5 {[%emt 0:00:13]} 58. Rxg7 {[%emt 0:00:03]} Rxh5 {[%emt 0:00:36]} 59. f4 {[%emt 0:00:06]} Rb5 {[%emt 0:00:23]} 60. Rh7 {[%emt 0:01:03]} h5 {[%emt 0:00:20]} 61. Ra7 {[%emt 0:01:22]} Kb3 {[%emt 0:00:12]} 62. Re7 {[%emt 0:00:00]} a4 {[%emt 0:00:53]} 63. Re5 {[%emt 0:00:10]} Rb8 {[%emt 0:01:02]} 64. Rxh5 {[%emt 0:00:38]} a3 {[%emt 0:00:01]} 65. Ra5 {[%emt 0:00:00]} a2 {[%emt 0:01:03]} 66. Kg4 {[%emt 0:00:21]} Rb4 {[%emt 0:00:44]} 67. Rxa2 {[%emt 0:01:02]} Kxa2 {[%emt 0:00:02]} 68. Kf5 {[%emt 0:00:00]} Kb3 {[%emt 0:00:36]} 69. Ke5 {[%emt 0:00:01]} Kc4 {[%emt 0:00:55]} 70. f5 {[%emt 0:00:10]} Rb5+ {[%emt 0:00:38]} 71. Ke6 {[%emt 0:00:08]} Rb6+ {[%emt 0:00:00]} 72. Ke5 {[%emt 0:00:45]} Rb5+ {[%emt 0:01:08]} 73. Ke6 {[%emt 0:00:30]} Rb6+ {[%emt 0:00:00]} 74. Ke5 {[%emt 0:00:00]} Kc5 {[%emt 0:01:06]} 75. f6 {[%emt 0:00:00]} Rb1 {[%emt 0:00:11]} 76. f7 {[%emt 0:00:00]} Rf1 {[%emt 0:00:38]} 77. Ke6 {[%emt 0:00:27]} Kc6 {[%emt 0:00:00]} 78. Ke7 {[%emt 0:00:00]} Re1+ {[%emt 0:00:00]} 79. Kd8 {[%emt 0:00:32]} Ra1 {[%emt 0:00:22]} 80. f8=Q {[%emt 0:00:39]} Ra8+ {[%emt 0:00:08]} 81. Ke7 {[%emt 0:00:09]} 1/2-1/2

[Event "Turkish Second League 2019"]
[Site "Konya"]
[Date "2019.07.28"]
[Round "9"]
[White "Ozdemir, Serhan Berat"]
[Black "Ilkimen, Mehmet Emre"]
[Result "0-1"]
[ECO "D40"]
[WhiteElo "1985"]
[BlackElo "1863"]
[Annotator "NA"]
[PlyCount "72"]
[EventDate "2019.07.22"]
[EventType "team-tourn"]
[EventCountry "TUR"]
[SourceTitle "playchess.com"]
[Source "ChessBase"]
[SourceQuality "1"]
[TimeControl "5400+30"]

1. e4 {[%emt 0:00:30]} c6 {[%emt 0:00:30]} 2. d4 {[%emt 0:00:00]} d5 {[%emt 0:00:30]} 3. exd5 {[%emt 0:01:00]} cxd5 {[%emt 0:00:30]} 4. c4 {[%emt 0:00:00]} Nf6 {[%emt 0:00:00]} 5. Nc3 {[%emt 0:00:00]} e6 {[%emt 0:01:00]} 6. Nf3 {[%emt 0:00:00]} Be7 {[%emt 0:00:30]} 7. Bd3 {[%emt 0:02:00]} O-O {[%emt 0:01:30]} 8. O-O {[%emt 0:00:00]} dxc4 {[%emt 0:04:30]} 9. Bxc4 {[%emt 0:00:00]} Nbd7 {[%emt 0:00:30]} 10. Bb3 {[%emt 0:05:30]} Nb6 {[%emt 0:02:30]} 11. Ne5 {[%emt 0:00:30]} Nbd5 {[%emt 0:06:30]} 12. Qf3 {[%emt 0:03:30]} a6 {[%emt 0:22:30]} 13. Re1 {[%emt 0:06:30]} Qd6 {[%emt 0:11:30]} 14. Bg5 {[%emt 0:03:30]} Nxc3 {[%emt 0:07:30]} 15. bxc3 {[%emt 0:00:30]} Nd5 {[%emt 0:01:30]} 16. Bd2 {[%emt 0:08:30]} b5 {[%emt 0:03:30]} 17. Bc2 {[%emt 0:14:30]} Bb7 {[%emt 0:07:30]} 18. Qh3 {[%emt 0:00:30]} f5 {[%emt 0:03:30]} 19. Nd3 {[%emt 0:16:30]} Rf6 {[%emt 0:03:36]} 20. Nc5 {[%emt 0:06:30]} Bc6 {[%emt 0:01:58]} 21. Re5 {[%emt 0:10:30]} Rg6 {[%emt 0:02:42]} 22. f3 {[%emt 0:01:14]} Nb4 {[%emt 0:09:32]} 23. Bb3 {[%emt 0:01:43]} Qxe5 {[%emt 0:01:28]} 24. dxe5 {[%emt 0:00:30]} Bxc5+ {[%emt 0:00:00]} 25. Kf1 {[%emt 0:06:50]} Nd5 {[%emt 0:01:30]} 26. Re1 {[%emt 0:05:16]} Rd8 {[%emt 0:00:47]} 27. Qh4 {[%emt 0:01:37]} Rd7 {[%emt 0:00:42]} 28. g3 {[%emt 0:03:00]} f4 {[%emt 0:03:27]} 29. Qh3 {[%emt 0:03:08]} Rf7 {[%emt 0:01:29]} 30. g4 {[%emt 0:00:33]} Ne3+ {[%emt 0:01:36]} 31. Bxe3 {[%emt 0:00:08]} fxe3 {[%emt 0:00:00]} 32. Kg2 {[%emt 0:00:59]} Rf4 {[%emt 0:00:06]} 33. Qh5 {[%emt 0:00:31]} Rfxg4+ {[%emt 0:00:24]} 34. Kh3 {[%emt 0:00:27]} Bxf3 {[%emt 0:00:41]} 35. Bxe6+ {[%emt 0:00:33]} Rxe6 {[%emt 0:00:34]} 36. Rf1 Rg3+ {[%emt 0:00:00]} 0-1

[Event "Turkish Second League 2019"]
[Site "Konya"]
[Date "2019.07.28"]
[Round "9"]
[White "Yigit, Ahmet Yasir"]
[Black "Kayan, Veli"]
[Result "0-1"]
[ECO "B15"]
[WhiteElo "1962"]
[BlackElo "1863"]
[Annotator "NA"]
[PlyCount "80"]
[EventDate "2019.07.22"]
[EventType "team-tourn"]
[EventCountry "TUR"]
[SourceTitle "playchess.com"]
[Source "ChessBase"]
[SourceQuality "1"]
[TimeControl "5400+30"]

1. e4 {[%emt 0:00:30]} g6 {[%emt 0:00:30]} 2. d4 {[%emt 0:00:30]} Bg7 {[%emt 0:00:00]} 3. Nc3 {[%emt 0:01:30]} c6 {[%emt 0:00:00]} 4. f4 {[%emt 0:02:30]} d5 {[%emt 0:00:30]} 5. e5 {[%emt 0:00:00]} Nh6 {[%emt 0:01:30]} 6. Nf3 {[%emt 0:00:00]} O-O {[%emt 0:00:30]} 7. Be2 {[%emt 0:00:30]} Qb6 {[%emt 0:03:30]} 8. O-O {[%emt 0:01:30]} Bg4 {[%emt 0:00:30]} 9. Na4 {[%emt 0:05:30]} Qc7 {[%emt 0:04:30]} 10. Be3 {[%emt 0:00:30]} Nd7 {[%emt 0:00:30]} 11. h3 {[%emt 0:04:30]} Bxf3 {[%emt 0:01:30]} 12. Bxf3 {[%emt 0:00:30]} b5 {[%emt 0:00:30]} 13. Nc3 {[%emt 0:00:30]} Nf5 {[%emt 0:00:30]} 14. Bf2 {[%emt 0:00:30]} e6 {[%emt 0:00:30]} 15. g4 {[%emt 0:00:30]} Ne7 {[%emt 0:00:30]} 16. Kg2 {[%emt 0:00:30]} f6 {[%emt 0:00:30]} 17. Bh4 {[%emt 0:00:30]} g5 {[%emt 0:00:30]} 18. exf6 {[%emt 0:00:30]} gxh4 {[%emt 0:13:30]} 19. fxe7 {[%emt 0:09:30]} Rxf4 {[%emt 0:02:30]} 20. Qe1 {[%emt 0:03:30]} Qd6 {[%emt 0:07:30]} 21. Bxd5 {[%emt 0:05:30]} cxd5 {[%emt 0:32:30]} 22. Rxf4 {[%emt 0:00:00]} b4 {[%emt 0:04:30]} 23. Ne2 {[%emt 0:01:00]} Qxe7 {[%emt 0:00:00]} 24. a3 {[%emt 0:02:30]} e5 {[%emt 0:03:00]} 25. dxe5 {[%emt 0:01:30]} Bxe5 {[%emt 0:00:30]} 26. Qxb4 {[%emt 0:02:30]} Bd6 {[%emt 0:00:30]} 27. Qd2 {[%emt 0:00:30]} Re8 {[%emt 0:01:30]} 28. Qxd5+ {[%emt 0:01:30]} Kh8 {[%emt 0:00:30]} 29. Rf2 {[%emt 0:00:00]} Nf6 {[%emt 0:01:58]} 30. Qg5 {[%emt 0:07:00]} Qb7+ {[%emt 0:01:26]} 31. Kg1 {[%emt 0:01:30]} Ne4 {[%emt 0:01:29]} 32. Qh5 {[%emt 0:00:30]} Re5 {[%emt 0:02:33]} 33. Rf7 {[%emt 0:05:30]} Qb6+ {[%emt 0:00:28]} 34. Kg2 {[%emt 0:04:30]} Rxh5 {[%emt 0:00:09]} 35. gxh5 {[%emt 0:00:30]} Ng5 {[%emt 0:01:11]} 36. Rf5 {[%emt 0:03:30]} Qe3 {[%emt 0:00:21]} 37. Rf2 {[%emt 0:01:30]} Qxh3+ {[%emt 0:00:55]} 38. Kg1 {[%emt 0:00:30]} Nf3+ {[%emt 0:00:15]} 39. Rxf3 {[%emt 0:00:30]} Qxf3 {[%emt 0:00:00]} 40. Re1 {[%emt 0:00:00]} Bc5+ {[%emt 0:00:20]} 0-1

[Event "Turkish Second League 2019"]
[Site "Konya"]
[Date "2019.07.28"]
[Round "9"]
[White "Buke, Furkan"]
[Black "Cetinkaya, Umut Can"]
[Result "1-0"]
[ECO "B70"]
[WhiteElo "1959"]
[BlackElo "1639"]
[Annotator "NA"]
[PlyCount "89"]
[EventDate "2019.07.22"]
[EventType "team-tourn"]
[EventCountry "TUR"]
[SourceTitle "playchess.com"]
[Source "ChessBase"]
[SourceQuality "1"]
[TimeControl "5400+30"]

1. e4 {[%emt 0:00:30]} c5 {[%emt 0:00:30]} 2. Nf3 {[%emt 0:00:00]} d6 {[%emt 0:00:30]} 3. d4 {[%emt 0:01:00]} cxd4 {[%emt 0:00:30]} 4. Nxd4 {[%emt 0:00:30]} Nf6 {[%emt 0:00:30]} 5. Nc3 {[%emt 0:00:00]} g6 {[%emt 0:00:00]} 6. g3 {[%emt 0:02:00]} h5 {[%emt 0:02:00]} 7. h3 {[%emt 0:02:30]} Bd7 {[%emt 0:01:30]} 8. Bg2 {[%emt 0:01:30]} Qc8 {[%emt 0:00:00]} 9. Be3 {[%emt 0:15:30]} Nc6 {[%emt 0:07:00]} 10. Nxc6 {[%emt 0:00:30]} bxc6 {[%emt 0:03:30]} 11. f4 {[%emt 0:01:30]} Be6 {[%emt 0:06:30]} 12. Ne2 {[%emt 0:11:30]} d5 {[%emt 0:09:30]} 13. Bd4 {[%emt 0:03:30]} Bg7 {[%emt 0:04:30]} 14. Nc3 {[%emt 0:04:30]} dxe4 {[%emt 0:22:30]} 15. Nxe4 {[%emt 0:09:30]} O-O {[%emt 0:05:30]} 16. Nc5 {[%emt 0:06:30]} Nd5 {[%emt 0:14:33]} 17. Qd2 {[%emt 0:04:30]} Rd8 {[%emt 0:05:48]} 18. Bxg7 {[%emt 0:00:30]} Kxg7 {[%emt 0:02:15]} 19. O-O-O {[%emt 0:01:30]} Bf5 {[%emt 0:04:55]} 20. Qd4+ {[%emt 0:01:30]} Nf6 {[%emt 0:01:53]} 21. Qe5 {[%emt 0:00:30]} Rxd1+ {[%emt 0:02:26]} 22. Rxd1 {[%emt 0:06:30]} Bxh3 {[%emt 0:01:44]} 23. Be4 {[%emt 0:09:05]} Bf5 {[%emt 0:01:42]} 24. Bg2 {[%emt 0:05:59]} Bh3 {[%emt 0:00:52]} 25. Be4 {[%emt 0:01:39]} Bf5 {[%emt 0:00:06]} 26. Bh1 {[%emt 0:03:19]} Bg4 {[%emt 0:00:55]} 27. Re1 {[%emt 0:00:55]} Qf5 {[%emt 0:01:13]} 28. Qxf5 {[%emt 0:01:43]} Bxf5 {[%emt 0:00:01]} 29. Rxe7 {[%emt 0:00:10]} Nd5 {[%emt 0:00:34]} 30. Re1 {[%emt 0:01:36]} Kf8 {[%emt 0:00:53]} 31. c4 {[%emt 0:01:33]} Ne7 {[%emt 0:00:36]} 32. Re3 {[%emt 0:00:42]} Rc8 {[%emt 0:00:31]} 33. Rb3 {[%emt 0:00:18]} Rd8 {[%emt 0:00:19]} 34. Bf3 {[%emt 0:03:01]} Rd4 {[%emt 0:00:01]} 35. Rb8+ {[%emt 0:00:00]} Kg7 {[%emt 0:00:38]} 36. b3 {[%emt 0:00:13]} Bg4 {[%emt 0:01:11]} 37. Rb7 {[%emt 0:00:00]} Kf6 {[%emt 0:00:00]} 38. Rxa7 {[%emt 0:00:24]} Nf5 {[%emt 0:00:32]} 39. Nd7+ {[%emt 0:00:38]} Ke6 {[%emt 0:00:49]} 40. Nc5+ {[%emt 0:02:07]} Kf6 {[%emt 0:00:02]} 41. Nd7+ {[%emt 0:00:47]} Ke6 {[%emt 0:00:02]} 42. Ne5 {[%emt 0:00:01]} Nxg3 {[%emt 0:00:21]} 43. Nxc6 {[%emt 0:00:34]} Rd6 {[%emt 0:01:10]} 44. Ne5 {[%emt 0:01:06]} Ne2+ {[%emt 0:00:09]} 45. Kc2 {[%emt 0:00:00]} 1-0